[Event "110th Anniversary Open 2020"]
[Site "Hilleroed"]
[Date "2020.02.09"]
[Round "2.2"]
[White "Andersen, Soren Bull"]
[Black "Gukesh D"]
[Result "0-1"]
[ECO "E70"]
[WhiteElo "2100"]
[BlackElo "2542"]
[Annotator "ChessBase"]
[PlyCount "54"]
[EventDate "2020.02.08"]
[EventType "swiss"]
[EventCountry "DEN"]
[SourceTitle "playchess.com"]
[Source "ChessBase"]
[SourceQuality "1"]
[TimeControl "40/5400+30:1800+30"]

1. d4 {[%emt 0:00:00]} Nf6 {[%emt 0:00:00]} 2. c4 {[%emt 0:00:00]} g6 {[%emt 0:00:31]} 3. Nc3 {[%emt 0:00:05]} Bg7 {[%emt 0:00:05]} 4. e4 {[%emt 0:00:08]} d6 {[%emt 0:00:10]} 5. Bg5 {[%emt 0:01:06]} h6 {[%emt 0:03:08]} 6. Bh4 {[%emt 0:00:48]} Nbd7 {[%emt 0:04:19]} 7. f4 {[%emt 0:05:41]} Nh5 {[%emt 0:12:12]} 8. f5 {[%emt 0:06:40]} c5 {[%emt 0:03:30]} 9. Bf2 {[%emt 0:04:55]} cxd4 {[%emt 0:04:51]} 10. Bxd4 {[%emt 0:00:24]} Ne5 {[%emt 0:00:30]} 11. g4 {[%emt 0:11:07]} Nf4 {[%emt 0:03:31]} 12. Be3 {[%emt 0:00:41]} g5 {[%emt 0:01:35]} 13. Bxf4 {[%emt 0:01:26]} gxf4 {[%emt 0:00:07]} 14. Be2 {[%emt 0:11:05]} Bd7 {[%emt 0:02:55]} 15. Qd2 {[%emt 0:02:21]} Rc8 {[%emt 0:01:03]} 16. Qxf4 {[%emt 0:11:36]} Nxc4 {[%emt 0:02:18]} 17. Bxc4 {[%emt 0:03:11]} Rxc4 {[%emt 0:01:03]} 18. Nge2 {[%emt 0:00:46]} Qb6 {[%emt 0:03:43]} 19. Qd2 {[%emt 0:04:55]} Bc6 {[%emt 0:03:26]} 20. Rc1 {[%emt 0:03:28]} Bxe4 {[%emt 0:02:16]} 21. Nxe4 {[%emt 0:03:29]} Rxe4 {[%emt 0:00:06]} 22. Qd5 {[%emt 0:04:44]} Re5 {[%emt 0:02:36]} 23. Qd2 {[%emt 0:02:54]} O-O {[%emt 0:01:33]} 24. Rf1 {[%emt 0:05:54]} Re4 {[%emt 0:03:39]} 25. g5 {[%emt 0:01:46]} hxg5 {[%emt 0:01:11]} 26. Qxg5 {[%emt 0:01:00]} Qxb2 {[%emt 0:00:24]} 27. Qd2 {[%emt 0:02:01]} Qxd2+ {[%emt 0:00:24]} 0-1

[Event "110th Anniversary Open 2020"]
[Site "Hilleroed"]
[Date "2020.02.09"]
[Round "2.3"]
[White "Brondal, Paul"]
[Black "Stanford, Maxim Barth"]
[Result "0-1"]
[ECO "B33"]
[WhiteElo "2074"]
[BlackElo "2339"]
[Annotator "NA"]
[PlyCount "102"]
[EventDate "2020.02.08"]
[EventType "swiss"]
[EventCountry "DEN"]
[SourceTitle "playchess.com"]
[Source "ChessBase"]
[SourceQuality "1"]
[TimeControl "40/5400+30:1800+30"]

1. e4 {[%emt 0:00:00]} c5 {[%emt 0:02:43]} 2. Nf3 {[%emt 0:00:00]} Nc6 {[%emt 0:00:09]} 3. d4 {[%emt 0:00:02]} cxd4 {[%emt 0:00:05]} 4. Nxd4 {[%emt 0:00:06]} Nf6 {[%emt 0:00:04]} 5. Nc3 {[%emt 0:00:10]} e5 {[%emt 0:00:06]} 6. Ndb5 {[%emt 0:00:12]} d6 {[%emt 0:00:05]} 7. Bg5 {[%emt 0:00:41]} a6 {[%emt 0:00:06]} 8. Na3 {[%emt 0:00:09]} b5 {[%emt 0:00:07]} 9. Nd5 {[%emt 0:01:27]} (9. Bxf6 $5 gxf6 10. Nd5 $11) 9... Be7 {[%emt 0:00:06]} 10. Bxf6 {[%emt 0:00:24]} Bxf6 {[%emt 0:00:05]} 11. c3 {[%emt 0:01:40]} O-O {[%emt 0:00:43]} 12. Nc2 {[%emt 0:01:24]} Rb8 {[%emt 0:00:16]} 13. Be2 {[%emt 0:03:12]} Bg5 {[%emt 0:02:04]} 14. O-O {[%emt 0:03:10]} a5 {[%emt 0:00:24]} 15. Bg4 {[%emt 0:10:14] B33: Sicilian: Pelikan and Sveshnikov Variations} Be6 {[%emt 0:01:22]} 16. g3 {[%emt 0:03:27]} Qd7 {[%emt 0:05:57]} 17. Nce3 {[%emt 0:02:52] [#]} Bxe3 $146 {[%emt 0:02:40]} ({Predecessor:} 17... Ne7 18. Nxe7+ Bxe7 19. Be2 f5 20. exf5 Bxf5 21. Nxf5 Qxf5 22. Qd5+ Qf7 23. Rad1 Qxd5 24. Rxd5 {1-0 (42) Prianikov,S-Brekhov,D Saratov 2007}) 18. Nxe3 {[%emt 0:01:18]} b4 {[%emt 0:08:10]} 19. Bxe6 {[%emt 0:08:53]} fxe6 {[%emt 0:02:09]} 20. Qd2 {[%emt 0:10:02]} bxc3 {[%emt 0:03:20]} 21. bxc3 {[%emt 0:00:13]} Rfd8 {[%emt 0:00:46]} 22. Rab1 {[%emt 0:04:11]} Rxb1 {[%emt 0:03:50]} 23. Rxb1 {[%emt 0:00:09]} d5 {[%emt 0:01:10]} 24. Qd3 {[%emt 0:09:49]} d4 {[%emt 0:07:11]} 25. Nc4 {[%emt 0:05:07]} Qc7 {[%emt 0:03:14]} 26. Rb5 {[%emt 0:04:31]} dxc3 {[%emt 0:02:07]} 27. Qxc3 {[%emt 0:01:23]} Nd4 {[%emt 0:00:18]} 28. Qxa5 {[%emt 0:03:46]} Nxb5 {[%emt 0:00:06]} 29. Qxb5 {[%emt 0:00:08]} Rb8 {[%emt 0:00:31]} 30. Qa6 {[%emt 0:04:01]} Kf7 {[%emt 0:03:42]} 31. Kg2 {[%emt 0:05:33]} Rb4 {[%emt 0:05:00]} 32. Nd6+ {[%emt 0:01:49]} Kg6 {[%emt 0:01:02]} 33. Nf5 {[%emt 0:05:30]} Qc4 {[%emt 0:04:05]} 34. Nh4+ {[%emt 0:02:52]} Kh5 {[%emt 0:05:43]} 35. Qa7 {[%emt 0:02:04]} Qxe4+ {[%emt 0:00:45]} 36. Nf3 $19 {[%emt 0:00:18]} Rb7 {[%emt 0:04:05]} 37. Qa8 {[%emt 0:01:09]} Kh6 {[%emt 0:05:29]} 38. Qd8 {[%emt 0:00:50]} Qf5 {[%emt 0:02:48]} 39. Qd2+ {[%emt 0:01:40]} g5 {[%emt 0:06:56]} 40. h4 {[%emt 0:00:50]} Kg7 {[%emt 0:04:50]} 41. hxg5 {[%emt 0:33:12]} Rf7 {[%emt 0:38:13]} 42. Qe3 {[%emt 0:00:00]} e4 {[%emt 0:00:00]} 43. Qd4+ {[%emt 0:00:00]} Kg8 {[%emt 0:00:00]} 44. Ne5 {[%emt 0:00:00]} Rf8 {[%emt 0:00:00]} 45. Nd7 {[%emt 0:00:00]} e3 {[%emt 0:00:00]} 46. Nxf8 {[%emt 0:00:00]} Qxf2+ {[%emt 0:00:00]} 47. Kh3 {[%emt 0:00:00]} Qf5+ {[%emt 0:00:00]} 48. Kg2 {[%emt 0:00:00]} e2 {[%emt 0:00:00]} 49. Nxe6 {[%emt 0:00:00]} e1=N+ {[%emt 0:00:00]} 50. Kh1 {[%emt 0:00:00]} Qf3+ {[%emt 0:00:00]} 51. Kh2 {[%emt 0:00:00]} Qg2# {[%emt 0:12:58]} 0-1

[Event "110th Anniversary Open 2020"]
[Site "Hilleroed"]
[Date "2020.02.09"]
[Round "2.4"]
[White "Sylvan, Jacob"]
[Black "Wu, Sibo"]
[Result "1-0"]
[ECO "A11"]
[WhiteElo "2335"]
[BlackElo "2060"]
[Annotator "NA"]
[PlyCount "99"]
[EventDate "2020.02.08"]
[EventType "swiss"]
[EventCountry "DEN"]
[SourceTitle "playchess.com"]
[Source "ChessBase"]
[SourceQuality "1"]
[TimeControl "40/5400+30:1800+30"]

1. c4 {[%emt 0:00:00]} c6 {[%emt 0:00:49]} 2. g3 {[%emt 0:00:11]} d5 {[%emt 0:01:08]} 3. Bg2 {[%emt 0:00:19]} Nf6 {[%emt 0:00:24]} 4. Nf3 {[%emt 0:00:10]} Bf5 {[%emt 0:05:52]} 5. Qb3 {[%emt 0:02:49]} Qb6 {[%emt 0:05:31]} 6. d3 {[%emt 0:01:05]} e6 {[%emt 0:09:09]} 7. Nc3 {[%emt 0:05:16]} Nbd7 {[%emt 0:08:39]} 8. O-O {[%emt 0:05:48]} Nc5 {[%emt 0:06:22]} 9. Qxb6 {[%emt 0:04:25]} axb6 {[%emt 0:00:36]} 10. Nd4 {[%emt 0:00:21]} Bg6 {[%emt 0:28:05]} 11. cxd5 {[%emt 0:03:48]} Nxd5 {[%emt 0:01:10]} 12. Nxd5 {[%emt 0:05:28]} exd5 {[%emt 0:00:57]} 13. f4 {[%emt 0:00:25]} Ra4 {[%emt 0:05:21]} 14. Be3 {[%emt 0:04:11]} Bd6 {[%emt 0:03:33]} 15. b3 {[%emt 0:05:21]} Ra7 {[%emt 0:00:13]} 16. Rfc1 {[%emt 0:11:19]} O-O {[%emt 0:01:01]} 17. b4 {[%emt 0:01:57]} Nd7 {[%emt 0:01:11]} 18. Bxd5 $14 {[%emt 0:04:17]} Bxb4 {[%emt 0:06:07]} 19. Bf3 {[%emt 0:04:47]} f6 {[%emt 0:02:00]} 20. Bf2 {[%emt 0:07:07]} Bf7 {[%emt 0:01:43]} 21. Bg4 {[%emt 0:01:24]} Nc5 {[%emt 0:02:01]} 22. Rab1 {[%emt 0:00:49]} Ba3 {[%emt 0:01:04]} 23. Rc2 {[%emt 0:00:23]} Ra6 {[%emt 0:00:16]} 24. Nb3 {[%emt 0:01:37]} Nxb3 {[%emt 0:02:48]} 25. axb3 {[%emt 0:00:06]} Bb4 {[%emt 0:00:08]} 26. e4 {[%emt 0:01:07]} Re8 {[%emt 0:01:30]} 27. Bf3 {[%emt 0:01:08]} Rea8 {[%emt 0:03:21]} 28. Re2 {[%emt 0:06:22]} Ra1 {[%emt 0:00:42]} 29. Rxa1 {[%emt 0:00:37]} Rxa1+ {[%emt 0:00:03]} 30. Kg2 {[%emt 0:00:06]} Bxb3 {[%emt 0:00:29]} 31. Bxb6 {[%emt 0:02:22]} Ra2 {[%emt 0:01:33]} 32. Rxa2 {[%emt 0:00:26]} Bxa2 {[%emt 0:00:04]} 33. Kf2 {[%emt 0:00:10]} Kf7 {[%emt 0:01:04]} 34. d4 {[%emt 0:00:35]} Be6 {[%emt 0:00:16]} 35. f5 {[%emt 0:00:41]} Bd7 {[%emt 0:00:27]} 36. g4 {[%emt 0:02:16]} g6 {[%emt 0:01:05]} 37. Ke3 {[%emt 0:00:26]} Bd6 {[%emt 0:00:08]} 38. h3 {[%emt 0:00:10]} Bc8 {[%emt 0:01:14]} 39. Bd1 {[%emt 0:00:51]} Kg7 {[%emt 0:00:18]} 40. Bb3 {[%emt 0:00:29]} Kf8 {[%emt 0:00:47]} 41. Kf3 {[%emt 0:36:36]} Bd7 {[%emt 0:30:06]} 42. fxg6 {[%emt 0:02:03]} hxg6 {[%emt 0:00:03]} 43. h4 {[%emt 0:00:10]} f5 {[%emt 0:01:26]} 44. exf5 {[%emt 0:00:51]} gxf5 {[%emt 0:00:07]} 45. g5 {[%emt 0:00:05]} Kg7 {[%emt 0:00:28]} 46. Bc5 {[%emt 0:01:21]} Bc7 {[%emt 0:00:26]} 47. Be7 {[%emt 0:00:26]} Kg6 {[%emt 0:01:06]} 48. h5+ {[%emt 0:00:19]} Kh7 {[%emt 0:00:27]} 49. Bf7 {[%emt 0:00:35]} c5 {[%emt 0:00:30]} 50. Bf8 {[%emt 0:00:36]} 1-0

[Event "110th Anniversary Open 2020"]
[Site "Hilleroed"]
[Date "2020.02.09"]
[Round "2.5"]
[White "Schultz-Pedersen, Jesper"]
[Black "Nilssen, John Arni"]
[Result "1/2-1/2"]
[ECO "B20"]
[WhiteElo "2058"]
[BlackElo "2333"]
[Annotator "ChessBase"]
[PlyCount "179"]
[EventDate "2020.02.08"]
[EventType "swiss"]
[EventCountry "DEN"]
[SourceTitle "playchess.com"]
[Source "ChessBase"]
[SourceQuality "1"]
[TimeControl "40/5400+30:1800+30"]

1. e4 {[%emt 0:00:00]} c5 {[%emt 0:00:00]} 2. b4 {[%emt 0:00:00]} cxb4 {[%emt 0:00:00]} 3. a3 {[%emt 0:00:04]} d5 {[%emt 0:13:48]} 4. exd5 {[%emt 0:00:28]} Qxd5 {[%emt 0:01:49]} 5. Nf3 {[%emt 0:00:12]} e5 {[%emt 0:10:48]} 6. Bb2 {[%emt 0:00:53]} Nc6 {[%emt 0:02:28]} 7. c4 {[%emt 0:00:33]} Qe6 {[%emt 0:23:47]} 8. Bd3 {[%emt 0:01:33]} Bd6 {[%emt 0:01:23]} 9. O-O {[%emt 0:03:06]} Nf6 {[%emt 0:02:38]} 10. Re1 {[%emt 0:00:41]} O-O {[%emt 0:00:59]} 11. axb4 {[%emt 0:00:49]} Nxb4 {[%emt 0:03:22]} 12. Bf1 {[%emt 0:00:08]} e4 {[%emt 0:18:15]} 13. d3 {[%emt 0:01:44]} Nc6 {[%emt 0:04:56]} 14. Nbd2 {[%emt 0:10:41]} Bb4 {[%emt 0:06:44]} 15. Bxf6 {[%emt 0:28:41]} Qxf6 {[%emt 0:00:06]} 16. Nxe4 {[%emt 0:00:29]} Qd8 {[%emt 0:00:51]} 17. Re3 {[%emt 0:03:51]} Bg4 {[%emt 0:03:03]} 18. h3 {[%emt 0:01:34]} Bxf3 {[%emt 0:00:06]} 19. Rxf3 {[%emt 0:02:17]} f5 {[%emt 0:00:54]} 20. Ng3 {[%emt 0:05:33]} Nd4 {[%emt 0:01:17]} 21. Rb1 {[%emt 0:00:43]} a5 {[%emt 0:00:46]} 22. c5 {[%emt 0:03:59]} Nxf3+ {[%emt 0:00:36]} 23. Qxf3 {[%emt 0:00:20]} Rb8 {[%emt 0:00:49]} 24. Qf4 {[%emt 0:02:09]} Qd5 {[%emt 0:00:50]} 25. d4 {[%emt 0:01:21]} Rbd8 {[%emt 0:00:10]} 26. Ne2 {[%emt 0:06:04]} Kh8 {[%emt 0:00:01]} 27. Qh4 {[%emt 0:01:01]} Rfe8 {[%emt 0:01:01]} 28. Nf4 {[%emt 0:00:31]} Qf7 {[%emt 0:01:13]} 29. Bb5 {[%emt 0:25:05]} Rf8 {[%emt 0:00:52]} 30. d5 {[%emt 0:00:00]} Bxc5 {[%emt 0:00:13]} 31. Ne6 {[%emt 0:00:00]} Rxd5 {[%emt 0:00:41]} 32. Nxf8 {[%emt 0:00:00]} Qxf8 {[%emt 0:00:01]} 33. Re1 {[%emt 0:00:00]} Rd8 {[%emt 0:00:56]} 34. g4 {[%emt 0:00:00]} fxg4 {[%emt 0:00:36]} 35. hxg4 {[%emt 0:00:00]} g5 {[%emt 0:00:50]} 36. Qg3 {[%emt 0:00:00]} Qf6 {[%emt 0:00:27]} 37. Re8+ {[%emt 0:00:00]} Rxe8 {[%emt 0:00:01]} 38. Bxe8 {[%emt 0:00:00]} Qd4 {[%emt 0:00:46]} 39. Bb5 {[%emt 0:00:00]} Bd6 {[%emt 0:00:31]} 40. Qf3 {[%emt 0:00:00]} b6 {[%emt 0:00:50]} 41. Bd3 {[%emt 0:15:18]} Qf4 {[%emt 0:07:47]} 42. Qa8+ {[%emt 0:00:00]} Kg7 {[%emt 0:00:08]} 43. Qb7+ {[%emt 0:00:00]} Bc7 {[%emt 0:00:15]} 44. Qc8 {[%emt 0:00:00]} Qf7 {[%emt 0:11:45]} 45. Qa8 {[%emt 0:00:00]} Qe6 {[%emt 0:03:49]} 46. Bf5 {[%emt 0:00:00]} Qd6 {[%emt 0:00:22]} 47. Qe8 {[%emt 0:00:00]} Bd8 {[%emt 0:02:01]} 48. Be6 {[%emt 0:00:00]} Qe7 {[%emt 0:00:58]} 49. Qg8+ {[%emt 0:00:00]} Kf6 {[%emt 0:00:07]} 50. Bf5 {[%emt 0:00:00]} Ke5 {[%emt 0:00:52]} 51. Bxh7 {[%emt 0:00:00]} Qd7 {[%emt 0:03:37]} 52. Bf5 {[%emt 0:00:00]} Qd1+ {[%emt 0:00:06]} 53. Kh2 {[%emt 0:00:00]} Qd6 {[%emt 0:01:52]} 54. Qe8+ {[%emt 0:00:00]} Kd4+ {[%emt 0:00:58]} 55. Kg1 {[%emt 0:00:00]} Kc5 {[%emt 0:00:34]} 56. Qe3+ {[%emt 0:00:00]} Qd4 {[%emt 0:00:03]} 57. Qa3+ {[%emt 0:00:00]} Kc6 {[%emt 0:00:39]} 58. Qf3+ {[%emt 0:00:00]} Kd6 {[%emt 0:00:51]} 59. Qg3+ {[%emt 0:00:00]} Kd5 {[%emt 0:01:00]} 60. Qb3+ {[%emt 0:00:00]} Kc6 {[%emt 0:01:22]} 61. Qf3+ {[%emt 0:00:00]} Kb5 {[%emt 0:01:24]} 62. Qb3+ {[%emt 0:00:00]} Kc6 {[%emt 0:00:13]} 63. Qf3+ {[%emt 0:00:00]} Kc7 {[%emt 0:00:36]} 64. Qa8 {[%emt 0:00:00]} Bf6 {[%emt 0:00:39]} 65. Qc8+ {[%emt 0:03:59]} Kd6 {[%emt 0:00:01]} 66. Qf8+ {[%emt 0:02:49]} Kd5 {[%emt 0:00:02]} 67. Qa3 {[%emt 0:05:20]} Qc3 {[%emt 0:00:32]} 68. Qa4 {[%emt 0:00:49]} Bd4 {[%emt 0:00:40]} 69. Qd7+ {[%emt 0:01:32]} Kc4 {[%emt 0:00:20]} 70. Be6+ {[%emt 0:03:13]} Kd3 {[%emt 0:00:02]} 71. Qb5+ {[%emt 0:01:47]} Kc2 {[%emt 0:01:20]} 72. Bf5+ {[%emt 0:02:36]} Kd2 {[%emt 0:00:21]} 73. Kg2 {[%emt 0:02:39]} Bc5 {[%emt 0:00:02]} 74. Qa4 {[%emt 0:02:03]} Kc1 {[%emt 0:01:39]} 75. Qb5 {[%emt 0:01:30]} Kd2 {[%emt 0:00:33]} 76. Qa4 {[%emt 0:00:45]} Ba3 {[%emt 0:00:28]} 77. Qe4 {[%emt 0:01:31]} Bb4 {[%emt 0:00:30]} 78. Kf1 {[%emt 0:00:45]} Qc1+ {[%emt 0:00:32]} 79. Kg2 {[%emt 0:00:02]} Qc3 {[%emt 0:00:30]} 80. Kf1 {[%emt 0:00:02]} Qc1+ {[%emt 0:00:32]} 81. Kg2 {[%emt 0:00:02]} Kc3 {[%emt 0:00:23]} 82. Qd3+ {[%emt 0:01:31]} Kb2 {[%emt 0:00:01]} 83. Qd4+ {[%emt 0:00:13]} Qc3 {[%emt 0:00:09]} 84. Qxb6 {[%emt 0:05:33]} a4 {[%emt 0:00:01]} 85. Qa6 {[%emt 0:01:12]} a3 {[%emt 0:00:02]} 86. Qe2+ {[%emt 0:00:19]} Qd2 {[%emt 0:01:21]} 87. Qe5+ {[%emt 0:00:17]} Qc3 {[%emt 0:01:07]} 88. Qe2+ {[%emt 0:00:03]} Qd2 {[%emt 0:00:04]} 89. Qe5+ {[%emt 0:00:03]} Qc3 {[%emt 0:01:19]} 90. Qe2+ {[%emt 0:00:24]} 1/2-1/2

[Event "110th Anniversary Open 2020"]
[Site "Hilleroed"]
[Date "2020.02.09"]
[Round "2.6"]
[White "Lohia, Sohum"]
[Black "Jacobsen, Mikkel Manosri"]
[Result "0-1"]
[ECO "B29"]
[WhiteElo "2025"]
[BlackElo "2315"]
[Annotator "NA"]
[PlyCount "82"]
[EventDate "2020.02.08"]
[EventType "swiss"]
[EventCountry "DEN"]
[SourceTitle "playchess.com"]
[Source "ChessBase"]
[SourceQuality "1"]
[TimeControl "40/5400+30:1800+30"]

1. e4 {[%emt 0:00:00]} c5 {[%emt 0:00:00]} 2. Nf3 {[%emt 0:00:00]} Nf6 {[%emt 0:00:00]} 3. Nc3 {[%emt 0:00:00]} d5 {[%emt 0:00:00]} 4. exd5 {[%emt 0:00:00]} Nxd5 {[%emt 0:00:00]} 5. Bb5+ {[%emt 0:00:10]} Bd7 {[%emt 0:00:00]} 6. Ne5 {[%emt 0:00:45]} Nf6 {[%emt 0:00:00] B29: Sicilian: 2 Nf3 Nf6 (Nimzowitsch Variation).} 7. Qf3 {[%emt 0:00:26]} Qc8 {[%emt 0:00:03] 7...Qc7 is not played anymore.} 8. Nxd7 {[%emt 0:01:41] 8.a4 gains popularity.} Nbxd7 {[%emt 0:00:10]} 9. O-O {[%emt 0:01:23]} a6 {[%emt 0:00:36]} 10. Bxd7+ {[%emt 0:00:59]} Qxd7 {[%emt 0:00:17]} 11. d3 {[%emt 0:00:54]} e6 {[%emt 0:00:57]} 12. Bf4 {[%emt 0:07:23]} Be7 {[%emt 0:02:20] [#]} 13. a4 $146 {[%emt 0:05:23]} ({Predecessor:} 13. Rfe1 O-O 14. a4 Rac8 15. Be5 Ne8 16. Qe4 Bf6 17. Rad1 Bxe5 18. Qxe5 Qd4 19. Re4 Qxe5 20. Rxe5 {0-1 (49) Rasmussen,L (1961)-Bach,M (2200) Helsingor 2017}) 13... Rc8 {[%emt 0:06:31]} 14. Rad1 {[%emt 0:06:25]} h5 {[%emt 0:14:01]} 15. h3 {[%emt 0:08:30]} b5 {[%emt 0:10:05]} 16. axb5 {[%emt 0:02:16]} axb5 {[%emt 0:00:03]} 17. Ne4 {[%emt 0:12:38]} Nd5 {[%emt 0:01:43]} 18. Be5 {[%emt 0:01:25]} f6 {[%emt 0:01:45]} 19. Bh2 {[%emt 0:01:05]} e5 {[%emt 0:06:54]} 20. Ng3 {[%emt 0:09:31]} ({White should play} 20. c3 $16) 20... g6 $11 {[%emt 0:07:20]} 21. c4 {[%emt 0:09:37]} Nb4 {[%emt 0:05:19]} 22. Ne4 {[%emt 0:01:26]} Qe6 {[%emt 0:00:20]} 23. Qg3 {[%emt 0:06:32]} g5 {[%emt 0:00:42]} 24. h4 {[%emt 0:00:53]} gxh4 {[%emt 0:09:10]} 25. Qxh4 {[%emt 0:09:50]} Rd8 {[%emt 0:08:00]} 26. Qg3 {[%emt 0:04:35]} Rg8 {[%emt 0:00:44]} 27. Qf3 {[%emt 0:00:27]} Qg4 {[%emt 0:01:48]} 28. Qxg4 {[%emt 0:00:15]} hxg4 {[%emt 0:00:02]} 29. f4 {[%emt 0:02:47]} f5 {[%emt 0:01:29]} 30. Ng3 {[%emt 0:00:16]} exf4 {[%emt 0:01:56]} 31. Rxf4 {[%emt 0:00:17]} Nxd3 {[%emt 0:03:26]} 32. Rxf5 {[%emt 0:00:22]} bxc4 {[%emt 0:00:25]} 33. Ne4 {[%emt 0:02:01]} Rd4 {[%emt 0:00:25]} 34. Ng3 {[%emt 0:02:40]} Nxb2 {[%emt 0:00:38]} 35. Re1 {[%emt 0:02:25]} Nd3 {[%emt 0:00:27]} 36. Re3 {[%emt 0:00:28]} c3 {[%emt 0:00:55]} 37. Ne2 {[%emt 0:00:41]} c2 {[%emt 0:00:40]} 38. Rf1 {[%emt 0:00:52]} Nb4 {[%emt 0:05:33]} 39. Nc1 {[%emt 0:01:37]} Rd1 {[%emt 0:00:49]} 40. Ree1 {[%emt 0:00:24]} Rxe1 {[%emt 0:00:05]} 41. Rxe1 {[%emt 0:30:03]} g3 {[%emt 0:30:06]} 0-1

[Event "110th Anniversary Open 2020"]
[Site "Hilleroed"]
[Date "2020.02.09"]
[Round "2.7"]
[White "Siva Mahadevan"]
[Black "Alquist, Erik"]
[Result "1-0"]
[ECO "B49"]
[WhiteElo "2310"]
[BlackElo "2013"]
[Annotator "ChessBase"]
[PlyCount "61"]
[EventDate "2020.02.08"]
[EventType "swiss"]
[EventCountry "DEN"]
[SourceTitle "playchess.com"]
[Source "ChessBase"]
[SourceQuality "1"]
[TimeControl "40/5400+30:1800+30"]

1. e4 {[%emt 0:14:52]} c5 {[%emt 0:00:00]} 2. Nf3 {[%emt 0:00:13]} e6 {[%emt 0:00:00]} 3. d4 {[%emt 0:00:13]} cxd4 {[%emt 0:00:00]} 4. Nxd4 {[%emt 0:00:04]} Nc6 {[%emt 0:00:15]} 5. Nc3 {[%emt 0:00:07]} Qc7 {[%emt 0:00:07]} 6. Be2 {[%emt 0:00:18]} a6 {[%emt 0:00:17]} 7. O-O {[%emt 0:00:08]} Nf6 {[%emt 0:00:10]} 8. Be3 {[%emt 0:00:07]} Bb4 {[%emt 0:00:29]} 9. Na4 {[%emt 0:00:08]} Be7 {[%emt 0:00:12]} 10. c4 {[%emt 0:00:09]} Nxe4 {[%emt 0:00:32]} 11. c5 {[%emt 0:00:08]} O-O {[%emt 0:00:35]} 12. Rc1 {[%emt 0:00:04]} Rb8 {[%emt 0:01:03]} 13. Bf3 {[%emt 0:03:48]} Nf6 {[%emt 0:05:29]} 14. Re1 {[%emt 0:01:08]} Rd8 {[%emt 0:04:54]} 15. g3 {[%emt 0:08:11]} e5 {[%emt 0:03:12]} 16. Nf5 {[%emt 0:01:28]} d5 {[%emt 0:02:48]} 17. cxd6 {[%emt 0:05:22]} Bxd6 {[%emt 0:00:27]} 18. Nxd6 {[%emt 0:20:07]} Qxd6 {[%emt 0:12:51]} 19. Bb6 {[%emt 0:18:46]} Qxd1 {[%emt 0:01:59]} 20. Bxd1 {[%emt 0:00:07]} Rd7 {[%emt 0:01:56]} 21. Bb3 {[%emt 0:01:31]} Nd4 {[%emt 0:14:51]} 22. Kg2 {[%emt 0:00:44]} Nb5 {[%emt 0:19:21]} 23. Rxe5 {[%emt 0:04:28]} Rd2 {[%emt 0:01:17]} 24. Be3 {[%emt 0:04:04]} Rd8 {[%emt 0:05:43]} 25. Bf4 {[%emt 0:04:10]} Bd7 {[%emt 0:03:39]} 26. Re7 {[%emt 0:02:58]} Rbc8 {[%emt 0:03:15]} 27. Rxf7 {[%emt 0:00:41]} Kh8 {[%emt 0:00:22]} 28. Rxc8 {[%emt 0:00:15]} Rxc8 {[%emt 0:01:26]} 29. Be5 {[%emt 0:00:17]} Bc6+ {[%emt 0:00:36]} 30. f3 {[%emt 0:00:22]} Rd8 {[%emt 0:01:13]} 31. Rxf6 {[%emt 0:00:32]} 1-0

[Event "110th Anniversary Open 2020"]
[Site "Hilleroed"]
[Date "2020.02.09"]
[Round "2.8"]
[White "Sorensen, Esben Lauge"]
[Black "Larsen, Karsten"]
[Result "0-1"]
[ECO "D35"]
[WhiteElo "1943"]
[BlackElo "2235"]
[Annotator "ChessBase"]
[PlyCount "41"]
[EventDate "2020.02.08"]
[EventType "swiss"]
[EventCountry "DEN"]
[SourceTitle "playchess.com"]
[Source "ChessBase"]
[SourceQuality "1"]
[TimeControl "40/5400+30:1800+30"]

1. d4 {[%emt 0:00:00]} d5 {[%emt 0:00:00]} 2. c4 {[%emt 0:00:00]} e6 {[%emt 0:00:17]} 3. Nc3 {[%emt 0:00:00]} Nf6 {[%emt 0:00:45]} 4. cxd5 {[%emt 0:00:00]} exd5 {[%emt 0:00:10]} 5. Bg5 {[%emt 0:00:03]} Bb4 {[%emt 0:03:00]} 6. e3 {[%emt 0:03:25]} O-O {[%emt 0:03:12]} 7. Bd3 {[%emt 0:00:10]} h6 {[%emt 0:03:54]} 8. Bh4 {[%emt 0:00:54]} c6 {[%emt 0:04:31]} 9. Nge2 {[%emt 0:00:39]} a5 {[%emt 0:02:02]} 10. O-O {[%emt 0:02:53]} Re8 {[%emt 0:00:40]} 11. Qc2 {[%emt 0:04:45]} Na6 {[%emt 0:00:36]} 12. a3 {[%emt 0:03:21]} Bd6 {[%emt 0:02:53]} 13. Rae1 {[%emt 0:05:44]} Bxh2+ {[%emt 0:17:39]} 14. Kxh2 {[%emt 0:01:09]} Ng4+ {[%emt 0:00:31]} 15. Kg3 {[%emt 0:00:09]} g5 {[%emt 0:00:09]} 16. Bf5 {[%emt 0:00:39]} gxh4+ {[%emt 0:00:31]} 17. Kh3 {[%emt 0:04:31]} Qg5 {[%emt 0:01:40]} 18. Bxc8 {[%emt 0:01:13]} Raxc8 {[%emt 0:03:57]} 19. Ng1 {[%emt 0:06:26]} Nxe3 {[%emt 0:10:52]} 20. Rxe3 {[%emt 0:04:16]} Rxe3+ {[%emt 0:00:20]} 21. Nf3 {[%emt 0:01:04]} 0-1

[Event "110th Anniversary Open 2020"]
[Site "Hilleroed"]
[Date "2020.02.09"]
[Round "2.9"]
[White "Ostergaard, Jens"]
[Black "Kvendseth, Thyra"]
[Result "*"]
[ECO "B31"]
[WhiteElo "2229"]
[BlackElo "1889"]
[Annotator "ChessBase"]
[PlyCount "52"]
[EventDate "2020.02.08"]
[EventType "swiss"]
[EventCountry "DEN"]
[SourceTitle "playchess.com"]
[Source "ChessBase"]
[SourceQuality "1"]
[TimeControl "40/5400+30:1800+30"]

1. e4 {[%emt 0:00:00]} c5 {[%emt 0:00:00]} 2. Nf3 {[%emt 0:00:00]} Nc6 {[%emt 0:00:30]} 3. Bb5 {[%emt 0:00:00]} g6 {[%emt 0:00:09]} 4. Bxc6 {[%emt 0:00:45]} dxc6 {[%emt 0:00:06]} 5. Nc3 {[%emt 0:00:18]} Bg7 {[%emt 0:00:08]} 6. O-O {[%emt 0:00:23]} Nf6 {[%emt 0:01:11]} 7. d3 {[%emt 0:00:30]} Nd7 {[%emt 0:00:54]} 8. Be3 {[%emt 0:01:18]} e5 {[%emt 0:01:13]} 9. Qc1 {[%emt 0:00:26]} h6 {[%emt 0:00:43]} 10. Ne2 {[%emt 0:00:47]} f5 {[%emt 0:05:07]} 11. Bd2 {[%emt 0:01:49]} f4 {[%emt 0:03:13]} 12. Bc3 {[%emt 0:00:21]} Qe7 {[%emt 0:02:08]} 13. b3 {[%emt 0:04:57]} g5 {[%emt 0:02:47]} 14. Qd2 {[%emt 0:05:19]} g4 {[%emt 0:02:36]} 15. Ne1 {[%emt 0:01:39]} Nf8 {[%emt 0:00:31]} 16. f3 {[%emt 0:00:46]} h5 {[%emt 0:04:24]} 17. Bb2 {[%emt 0:09:00]} Ng6 {[%emt 0:02:22]} 18. c3 {[%emt 0:00:40]} Be6 {[%emt 0:01:36]} 19. d4 {[%emt 0:00:44]} O-O-O {[%emt 0:01:13]} 20. Nc2 {[%emt 0:04:40]} Nh4 {[%emt 0:05:52]} 21. Ne1 {[%emt 0:04:42]} Rhg8 {[%emt 0:01:35]} 22. Kh1 {[%emt 0:00:30]} Bh8 {[%emt 0:06:15]} 23. Rg1 {[%emt 0:01:00]} g3 {[%emt 0:00:42]} 24. hxg3 {[%emt 0:01:38]} fxg3 {[%emt 0:00:43]} 25. Qe3 {[%emt 0:03:07]} Nf5 {[%emt 0:00:53]} 26. exf5 {[%emt 0:03:10]} Qh4# {[%emt 0:00:10]} *